[Event "Titled Tuesday Blitz October 11 Late 2022"]
[White "Donchenko, Alexander"]
[Black "Danielyan, Vahe"]
[WhiteFideId "24603295"]
[BlackFideId "13304828"]
[WhiteElo "2572"]
[BlackElo "2421"]
[Result "1/2-1/2"]
[Round "02"]
[TimeControl "180+1"]
[Date "2022.10.11"]
[WhiteClock "0:00:09"]
[BlackClock "0:00:14"]

1. Nf3 {[%clk 0:03:00]}  b6 {[%clk 0:02:59]} 2. g3 {[%clk 0:03:01]}  Bb7 {[%clk 0:03:00]} 3. Bg2 {[%clk 0:03:01]}  Nf6 {[%clk 0:03:00]} 4. O-O {[%clk 0:03:02]}  g6 {[%clk 0:03:01]} 5. d4 {[%clk 0:03:02]}  Bg7 {[%clk 0:03:01]} 6. c4 {[%clk 0:03:02]}  O-O {[%clk 0:03:02]} 7. d5 {[%clk 0:03:02]}  b5 {[%clk 0:03:01]} 8. cxb5 {[%clk 0:02:59]}  Bxd5 {[%clk 0:03:02]} 9. Nc3 {[%clk 0:02:59]}  Bb7 {[%clk 0:03:01]} 10. Qc2 {[%clk 0:02:58]}  a6 {[%clk 0:03:00]} 11. Rd1 {[%clk 0:02:54]}  axb5 {[%clk 0:02:58]} 12. Nxb5 {[%clk 0:02:55]}  Na6 {[%clk 0:02:58]} 13. Bg5 {[%clk 0:02:47]}  d6 {[%clk 0:02:57]} 14. a3 {[%clk 0:02:45]}  c5 {[%clk 0:02:57]} 15. Nc3 {[%clk 0:02:43]}  Nc7 {[%clk 0:02:55]} 16. e4 {[%clk 0:02:42]}  Qc8 {[%clk 0:02:52]} 17. e5 {[%clk 0:02:40]}  dxe5 {[%clk 0:02:51]} 18. Nxe5 {[%clk 0:02:41]}  Bxg2 {[%clk 0:02:51]} 19. Kxg2 {[%clk 0:02:41]}  Qe6 {[%clk 0:02:51]} 20. Bxf6 {[%clk 0:02:33]}  Bxf6 {[%clk 0:02:50]} 21. Nd7 {[%clk 0:02:33]}  Rfd8 {[%clk 0:02:28]} 22. Nxf6+ {[%clk 0:02:31]}  Qxf6 {[%clk 0:02:24]} 23. Rxd8+ {[%clk 0:02:27]}  Rxd8 {[%clk 0:02:25]} 24. Rd1 {[%clk 0:02:27]}  Qc6+ {[%clk 0:02:21]} 25. Kg1 {[%clk 0:02:27]}  Rd4 {[%clk 0:02:15]} 26. Qe2 {[%clk 0:02:24]}  Ne6 {[%clk 0:02:14]} 27. h4 {[%clk 0:02:19]}  Rxd1+ {[%clk 0:02:11]} 28. Qxd1 {[%clk 0:02:13]}  Nd4 {[%clk 0:02:10]} 29. Qd3 {[%clk 0:02:09]}  f5 {[%clk 0:01:48]} 30. Qe3 {[%clk 0:01:55]}  e5 {[%clk 0:01:46]} 31. Qd3 {[%clk 0:01:46]}  Nf3+ {[%clk 0:01:40]} 32. Kf1 {[%clk 0:01:45]}  Nd4 {[%clk 0:01:40]} 33. Qc4+ {[%clk 0:01:45]}  Kg7 {[%clk 0:01:37]} 34. Qd5 {[%clk 0:01:45]}  Qa6+ {[%clk 0:01:36]} 35. Kg2 {[%clk 0:01:44]}  Qc6 {[%clk 0:01:30]} 36. a4 {[%clk 0:01:40]}  Kf6 {[%clk 0:01:25]} 37. a5 {[%clk 0:01:36]}  Qxd5+ {[%clk 0:01:19]} 38. Nxd5+ {[%clk 0:01:37]}  Ke6 {[%clk 0:01:20]} 39. a6 {[%clk 0:01:35]}  Nc6 {[%clk 0:01:11]} 40. Nc7+ {[%clk 0:01:27]}  Kd7 {[%clk 0:01:07]} 41. Nb5 {[%clk 0:01:28]}  Kc8 {[%clk 0:01:02]} 42. h5 {[%clk 0:01:18]}  gxh5 {[%clk 0:00:49]} 43. Kh3 {[%clk 0:01:15]}  Nd4 {[%clk 0:00:49]} 44. Nd6+ {[%clk 0:01:10]}  Kb8 {[%clk 0:00:46]} 45. Nb7 {[%clk 0:00:59]}  Ne6 {[%clk 0:00:23]} 46. Na5 {[%clk 0:00:45]}  Ka7 {[%clk 0:00:18]} 47. Nc6+ {[%clk 0:00:45]}  Kxa6 {[%clk 0:00:19]} 48. Nxe5 {[%clk 0:00:46]}  Kb5 {[%clk 0:00:19]} 49. Kh4 {[%clk 0:00:46]}  Kb4 {[%clk 0:00:19]} 50. Kxh5 {[%clk 0:00:46]}  Kb3 {[%clk 0:00:19]} 51. Kh6 {[%clk 0:00:45]}  c4 {[%clk 0:00:18]} 52. Kxh7 {[%clk 0:00:44]}  Nc5 {[%clk 0:00:17]} 53. Kg6 {[%clk 0:00:21]}  Nd3 {[%clk 0:00:18]} 54. Nxc4 {[%clk 0:00:21]}  Kxc4 {[%clk 0:00:18]} 55. f4 {[%clk 0:00:20]}  Kd5 {[%clk 0:00:13]} 56. Kxf5 {[%clk 0:00:19]}  Nxb2 {[%clk 0:00:12]} 57. g4 {[%clk 0:00:19]}  Kd6 {[%clk 0:00:13]} 58. Kf6 {[%clk 0:00:19]}  Nd3 {[%clk 0:00:13]} 59. f5 {[%clk 0:00:19]}  Ne5 {[%clk 0:00:13]} 60. g5 {[%clk 0:00:19]}  Ng4+ {[%clk 0:00:14]} 61. Kf7 {[%clk 0:00:18]}  Ke5 {[%clk 0:00:12]} 62. f6 {[%clk 0:00:17]}  Kf5 {[%clk 0:00:13]} 63. Kg7 {[%clk 0:00:16]}  Ne5 {[%clk 0:00:11]} 64. Kh6 {[%clk 0:00:12]}  Ke6 {[%clk 0:00:10]} 65. Kh7 {[%clk 0:00:08]}  Kf7 {[%clk 0:00:09]} 66. Kh8 {[%clk 0:00:06]}  Ng6+ {[%clk 0:00:10]} 67. Kh7 {[%clk 0:00:06]}  Ne5 {[%clk 0:00:09]} 68. Kh6 {[%clk 0:00:07]}  Ng6 {[%clk 0:00:10]} 69. Kh5 {[%clk 0:00:07]}  Nf8 {[%clk 0:00:10]} 70. Kg4 {[%clk 0:00:07]}  Ng6 {[%clk 0:00:11]} 71. Kf5 {[%clk 0:00:07]}  Nf8 {[%clk 0:00:12]} 72. Kg4 {[%clk 0:00:08]}  Ng6 {[%clk 0:00:13]} 73. Kf5 {[%clk 0:00:08]}  Nf8 {[%clk 0:00:14]} 74. Kg4 {[%clk 0:00:09]} 1/2-1/2


[Site "https://www.chess.com"]

[Event "Titled Tuesday Blitz October 11 Late 2022"]
[White "Eisa Mohmood, Alkhoori"]
[Black "Sztokbant, Bernardo Vainzoff"]
[WhiteFideId "9316116"]
[BlackFideId "2115956"]
[WhiteElo "1245"]
[BlackElo "2171"]
[Result "1-0"]
[Round "02"]
[TimeControl "180+1"]
[Date "2022.10.12"]
[WhiteClock "0:01:03"]
[BlackClock "0:00:03"]

1. e4 {[%clk 0:02:48]}  c5 {[%clk 0:02:59]} 2. Nf3 {[%clk 0:02:48]}  b6 {[%clk 0:03:00]} 3. d4 {[%clk 0:02:44]}  cxd4 {[%clk 0:03:01]} 4. Nxd4 {[%clk 0:02:45]}  Bb7 {[%clk 0:03:00]} 5. Nc3 {[%clk 0:02:35]}  Nc6 {[%clk 0:03:00]} 6. Bf4 {[%clk 0:02:29]}  Rc8 {[%clk 0:02:46]} 7. Nxc6 {[%clk 0:02:21]}  Bxc6 {[%clk 0:02:44]} 8. Ba6 {[%clk 0:02:19]}  Ra8 {[%clk 0:02:44]} 9. Nd5 {[%clk 0:02:16]}  d6 {[%clk 0:02:41]} 10. Qd4 {[%clk 0:02:11]}  e5 {[%clk 0:02:26]} 11. Qc4 {[%clk 0:02:07]}  Qd7 {[%clk 0:02:03]} 12. Be3 {[%clk 0:02:06]}  Ne7 {[%clk 0:01:50]} 13. Nb4 {[%clk 0:02:05]}  b5 {[%clk 0:01:32]} 14. Qe2 {[%clk 0:02:01]}  Rb8 {[%clk 0:01:26]} 15. a4 {[%clk 0:01:57]}  bxa4 {[%clk 0:01:19]} 16. c3 {[%clk 0:01:57]}  Bxe4 {[%clk 0:01:01]} 17. O-O {[%clk 0:01:50]}  Nf5 {[%clk 0:00:54]} 18. Bxa7 {[%clk 0:01:43]}  Rxb4 {[%clk 0:00:45]} 19. cxb4 {[%clk 0:01:41]}  Qxa7 {[%clk 0:00:45]} 20. Qxe4 {[%clk 0:01:41]}  Qxa6 {[%clk 0:00:44]} 21. Qxf5 {[%clk 0:01:38]}  Be7 {[%clk 0:00:41]} 22. Rfc1 {[%clk 0:01:35]}  O-O {[%clk 0:00:39]} 23. Qd7 {[%clk 0:01:36]}  Bf6 {[%clk 0:00:23]} 24. b5 {[%clk 0:01:33]}  Qa5 {[%clk 0:00:20]} 25. b3 {[%clk 0:01:32]}  a3 {[%clk 0:00:17]} 26. Rc8 {[%clk 0:01:29]}  g6 {[%clk 0:00:11]} 27. Rxf8+ {[%clk 0:01:25]}  Kxf8 {[%clk 0:00:12]} 28. Qxd6+ {[%clk 0:01:26]}  Kg7 {[%clk 0:00:07]} 29. Qxa3 {[%clk 0:01:23]}  Qxb5 {[%clk 0:00:08]} 30. Qa4 {[%clk 0:01:17]}  Qe2 {[%clk 0:00:06]} 31. Qc4 {[%clk 0:01:14]}  Qd2 {[%clk 0:00:04]} 32. Qe4 {[%clk 0:01:12]}  Qc3 {[%clk 0:00:02]} 33. Rb1 {[%clk 0:01:09]}  Qd2 {[%clk 0:00:02]} 34. b4 {[%clk 0:01:07]}  Qc3 {[%clk 0:00:02]} 35. b5 {[%clk 0:01:07]}  Bd8 {[%clk 0:00:02]} 36. Qb4 {[%clk 0:01:04]}  Bb6 {[%clk 0:00:03]} 37. Qxc3 {[%clk 0:01:03]} 1-0


[Site "https://www.chess.com"]

[Event "Titled Tuesday Blitz October 11 Late 2022"]
[White "Erdogdu, Mert"]
[Black "Stork, Oliver"]
[WhiteFideId "6301495"]
[BlackFideId "12955728"]
[WhiteElo "2413"]
[BlackElo "2239"]
[Result "1-0"]
[Round "02"]
[TimeControl "180+1"]
[Date "2022.10.12"]
[WhiteClock "0:01:57"]
[BlackClock "0:01:17"]

1. e4 {[%clk 0:03:00]}  c5 {[%clk 0:02:59]} 2. Nf3 {[%clk 0:03:00]}  e6 {[%clk 0:02:58]} 3. d4 {[%clk 0:03:01]}  cxd4 {[%clk 0:02:58]} 4. Nxd4 {[%clk 0:03:02]}  Nf6 {[%clk 0:02:58]} 5. Nc3 {[%clk 0:03:02]}  Nc6 {[%clk 0:02:59]} 6. Ndb5 {[%clk 0:03:02]}  d6 {[%clk 0:02:59]} 7. Bf4 {[%clk 0:03:02]}  e5 {[%clk 0:02:59]} 8. Bg5 {[%clk 0:03:02]}  a6 {[%clk 0:02:59]} 9. Na3 {[%clk 0:03:03]}  b5 {[%clk 0:03:00]} 10. Nd5 {[%clk 0:03:04]}  Be7 {[%clk 0:02:59]} 11. Bxf6 {[%clk 0:03:04]}  Bxf6 {[%clk 0:03:00]} 12. c4 {[%clk 0:03:05]}  b4 {[%clk 0:03:00]} 13. Nc2 {[%clk 0:03:04]}  a5 {[%clk 0:03:00]} 14. b3 {[%clk 0:03:04]}  g6 {[%clk 0:02:57]} 15. g3 {[%clk 0:03:04]}  Bg7 {[%clk 0:02:57]} 16. h4 {[%clk 0:02:59]}  h5 {[%clk 0:02:48]} 17. Bg2 {[%clk 0:02:59]}  O-O {[%clk 0:02:48]} 18. O-O {[%clk 0:02:59]}  Be6 {[%clk 0:02:43]} 19. Qd3 {[%clk 0:02:56]}  Nb8 {[%clk 0:02:40]} 20. a3 {[%clk 0:02:55]}  bxa3 {[%clk 0:02:37]} 21. Nxa3 {[%clk 0:02:55]}  Na6 {[%clk 0:02:32]} 22. Rfd1 {[%clk 0:02:53]}  Nc5 {[%clk 0:02:30]} 23. Qe3 {[%clk 0:02:51]}  a4 {[%clk 0:01:43]} 24. bxa4 {[%clk 0:02:45]}  Rxa4 {[%clk 0:01:36]} 25. Rab1 {[%clk 0:02:13]}  Qa8 {[%clk 0:01:27]} 26. Nb5 {[%clk 0:02:05]}  Rxc4 {[%clk 0:01:27]} 27. Nb6 {[%clk 0:02:00]}  Rxe4 {[%clk 0:01:17]} 28. Nxa8 {[%clk 0:01:57]}  Rxe3 {[%clk 0:01:17]} 29. fxe3 {[%clk 0:01:57]}  Rxa8 {[%clk 0:01:17]} 30. Bxa8 {[%clk 0:01:57]} 1-0


[Site "https://www.chess.com"]

[Event "Titled Tuesday Blitz October 11 Late 2022"]
[White "Ernst, Sipke"]
[Black "Ibarra Jerez, Jose Carlos"]
[WhiteFideId "1004689"]
[BlackFideId "2226332"]
[WhiteElo "2438"]
[BlackElo "2627"]
[Result "0-1"]
[Round "02"]
[TimeControl "180+1"]
[Date "2022.10.11"]
[WhiteClock "0:00:06"]
[BlackClock "0:00:25"]

1. d4 {[%clk 0:03:00]}  Nf6 {[%clk 0:02:58]} 2. c4 {[%clk 0:02:59]}  d6 {[%clk 0:02:58]} 3. Nc3 {[%clk 0:02:55]}  e5 {[%clk 0:02:58]} 4. e3 {[%clk 0:02:41]}  Nbd7 {[%clk 0:02:56]} 5. Nf3 {[%clk 0:02:40]}  g6 {[%clk 0:02:56]} 6. Be2 {[%clk 0:02:40]}  Bg7 {[%clk 0:02:57]} 7. O-O {[%clk 0:02:41]}  O-O {[%clk 0:02:57]} 8. Qc2 {[%clk 0:02:40]}  Re8 {[%clk 0:02:57]} 9. Rd1 {[%clk 0:02:39]}  e4 {[%clk 0:02:50]} 10. Nd2 {[%clk 0:02:39]}  Nf8 {[%clk 0:02:51]} 11. Ndxe4 {[%clk 0:02:26]}  Nxe4 {[%clk 0:02:42]} 12. Nxe4 {[%clk 0:02:26]}  Bf5 {[%clk 0:02:28]} 13. Bd3 {[%clk 0:02:25]}  Qh4 {[%clk 0:02:28]} 14. Ng3 {[%clk 0:02:24]}  Bg4 {[%clk 0:02:28]} 15. f3 {[%clk 0:02:21]}  Bd7 {[%clk 0:02:25]} 16. Bf1 {[%clk 0:02:19]}  Ne6 {[%clk 0:02:24]} 17. Qf2 {[%clk 0:02:12]}  c5 {[%clk 0:02:00]} 18. dxc5 {[%clk 0:02:05]}  Nxc5 {[%clk 0:02:00]} 19. e4 {[%clk 0:02:01]}  Ba4 {[%clk 0:01:54]} 20. Rxd6 {[%clk 0:01:51]}  b6 {[%clk 0:01:53]} 21. Be3 {[%clk 0:01:50]}  Be5 {[%clk 0:01:49]} 22. Rd2 {[%clk 0:01:39]}  Rac8 {[%clk 0:01:49]} 23. Rc1 {[%clk 0:01:38]}  Ne6 {[%clk 0:01:47]} 24. b3 {[%clk 0:01:37]}  Bc6 {[%clk 0:01:46]} 25. b4 {[%clk 0:01:21]}  f5 {[%clk 0:01:40]} 26. exf5 {[%clk 0:01:20]}  gxf5 {[%clk 0:01:40]} 27. f4 {[%clk 0:01:10]}  Nxf4 {[%clk 0:01:40]} 28. Nxf5 {[%clk 0:00:36]}  Ne2+ {[%clk 0:01:38]} 29. Bxe2 {[%clk 0:00:36]}  Qxh2+ {[%clk 0:01:34]} 30. Kf1 {[%clk 0:00:36]}  Rf8 {[%clk 0:01:21]} 31. Bg4 {[%clk 0:00:23]}  Rce8 {[%clk 0:01:05]} 32. g3 {[%clk 0:00:17]}  Qh1+ {[%clk 0:01:02]} 33. Qg1 {[%clk 0:00:15]}  Qe4 {[%clk 0:01:01]} 34. Qf2 {[%clk 0:00:11]}  Qh1+ {[%clk 0:00:54]} 35. Qg1 {[%clk 0:00:11]}  Qe4 {[%clk 0:00:54]} 36. Qf2 {[%clk 0:00:11]}  Kh8 {[%clk 0:00:49]} 37. Qe2 {[%clk 0:00:06]}  Rxf5+ {[%clk 0:00:32]} 38. Bxf5 {[%clk 0:00:06]}  Qxf5+ {[%clk 0:00:32]} 39. Qf2 {[%clk 0:00:06]}  Qh3+ {[%clk 0:00:25]} 40. Ke1 {[%clk 0:00:06]}  Bxg3 {[%clk 0:00:25]} 0-1


[Site "https://www.chess.com"]

[Event "Titled Tuesday Blitz October 11 Late 2022"]
[White "Gatineau, Yovann"]
[Black "Ferreira, Vitor Hugo Vieira"]
[WhiteFideId "26028999"]
[BlackFideId "2119765"]
[WhiteElo "2275"]
[BlackElo "2168"]
[Result "1-0"]
[Round "02"]
[TimeControl "180+1"]
[Date "2022.10.12"]
[WhiteClock "0:00:36"]
[BlackClock "0:01:42"]

1. b4 {[%clk 0:03:00]}  e5 {[%clk 0:02:58]} 2. Bb2 {[%clk 0:03:00]}  Nf6 {[%clk 0:02:58]} 3. Bxe5 {[%clk 0:02:58]}  Bxb4 {[%clk 0:02:58]} 4. c3 {[%clk 0:02:57]}  Be7 {[%clk 0:02:54]} 5. Nf3 {[%clk 0:02:54]}  d5 {[%clk 0:02:53]} 6. e3 {[%clk 0:02:52]}  Nbd7 {[%clk 0:02:52]} 7. Bg3 {[%clk 0:02:51]}  Ne4 {[%clk 0:02:50]} 8. c4 {[%clk 0:02:47]}  Nxg3 {[%clk 0:02:50]} 9. hxg3 {[%clk 0:02:48]}  dxc4 {[%clk 0:02:48]} 10. Bxc4 {[%clk 0:02:49]}  O-O {[%clk 0:02:44]} 11. Nc3 {[%clk 0:02:48]}  Bf6 {[%clk 0:02:39]} 12. Qc2 {[%clk 0:02:33]}  g6 {[%clk 0:02:37]} 13. Rc1 {[%clk 0:02:28]}  a6 {[%clk 0:02:36]} 14. Ne4 {[%clk 0:02:25]}  Be7 {[%clk 0:02:22]} 15. d4 {[%clk 0:01:57]}  Nb6 {[%clk 0:02:19]} 16. Bb3 {[%clk 0:01:55]}  Bf5 {[%clk 0:02:17]} 17. g4 {[%clk 0:01:49]}  Bxe4 {[%clk 0:02:15]} 18. Qxe4 {[%clk 0:01:50]}  c6 {[%clk 0:02:15]} 19. Ne5 {[%clk 0:01:22]}  Kg7 {[%clk 0:02:00]} 20. Nxf7 {[%clk 0:01:14]}  Rxf7 {[%clk 0:01:51]} 21. Bxf7 {[%clk 0:01:13]}  Kxf7 {[%clk 0:01:51]} 22. Rxh7+ {[%clk 0:01:13]}  Ke8 {[%clk 0:01:50]} 23. Qe6 {[%clk 0:00:52]}  Nd7 {[%clk 0:01:42]} 24. Qxg6+ {[%clk 0:00:50]}  Kf8 {[%clk 0:01:42]} 25. Rh8# {[%clk 0:00:36]} 1-0


[Site "https://www.chess.com"]

[Event "Titled Tuesday Blitz October 11 Late 2022"]
[White "Girel, Joseph"]
[Black "Yi, Richard"]
[WhiteFideId "36033561"]
[BlackFideId "2079518"]
[WhiteElo "2281"]
[BlackElo "2147"]
[Result "1-0"]
[Round "02"]
[TimeControl "180+1"]
[Date "2022.10.12"]
[WhiteClock "0:01:14"]
[BlackClock "0:00:07"]

1. e4 {[%clk 0:03:00]}  e5 {[%clk 0:02:57]} 2. Nf3 {[%clk 0:03:01]}  Nc6 {[%clk 0:02:58]} 3. Bc4 {[%clk 0:03:01]}  Bc5 {[%clk 0:02:58]} 4. c3 {[%clk 0:03:01]}  Nf6 {[%clk 0:02:58]} 5. d4 {[%clk 0:03:02]}  exd4 {[%clk 0:02:58]} 6. b4 {[%clk 0:03:03]}  Bb6 {[%clk 0:02:55]} 7. e5 {[%clk 0:03:01]}  d5 {[%clk 0:02:55]} 8. exf6 {[%clk 0:03:01]}  dxc4 {[%clk 0:02:55]} 9. Qe2+ {[%clk 0:03:00]}  Be6 {[%clk 0:02:55]} 10. b5 {[%clk 0:03:01]}  Na5 {[%clk 0:02:50]} 11. fxg7 {[%clk 0:03:00]}  Rg8 {[%clk 0:02:50]} 12. Bg5 {[%clk 0:02:57]}  Qd5 {[%clk 0:02:47]} 13. Bf6 {[%clk 0:02:55]}  d3 {[%clk 0:02:33]} 14. Qe5 {[%clk 0:02:54]}  c6 {[%clk 0:02:24]} 15. Nbd2 {[%clk 0:02:50]}  cxb5 {[%clk 0:02:11]} 16. Ne4 {[%clk 0:02:46]}  Nc6 {[%clk 0:01:59]} 17. Qf4 {[%clk 0:02:27]}  Bc5 {[%clk 0:01:28]} 18. Bh4 {[%clk 0:02:10]}  Be7 {[%clk 0:01:22]} 19. Bxe7 {[%clk 0:02:08]}  Kxe7 {[%clk 0:01:21]} 20. Qh4+ {[%clk 0:02:07]}  f6 {[%clk 0:01:13]} 21. Nxf6 {[%clk 0:02:05]}  d2+ {[%clk 0:01:07]} 22. Nxd2 {[%clk 0:01:57]}  Qxg2 {[%clk 0:00:54]} 23. Nxg8+ {[%clk 0:01:54]}  Kf7 {[%clk 0:00:54]} 24. Nh6+ {[%clk 0:01:54]}  Ke8 {[%clk 0:00:39]} 25. Qe4 {[%clk 0:01:46]}  Qxe4+ {[%clk 0:00:27]} 26. Nxe4 {[%clk 0:01:47]}  Ke7 {[%clk 0:00:27]} 27. Rg1 {[%clk 0:01:45]}  Ne5 {[%clk 0:00:26]} 28. O-O-O {[%clk 0:01:41]}  Ng6 {[%clk 0:00:22]} 29. Ng5 {[%clk 0:01:36]}  Bg8 {[%clk 0:00:19]} 30. h4 {[%clk 0:01:29]}  a5 {[%clk 0:00:15]} 31. Rge1+ {[%clk 0:01:23]}  Kf6 {[%clk 0:00:14]} 32. Rd7 {[%clk 0:01:23]}  Ne5 {[%clk 0:00:11]} 33. Rd6+ {[%clk 0:01:21]}  Kxg7 {[%clk 0:00:07]} 34. Rxe5 {[%clk 0:01:20]}  b4 {[%clk 0:00:08]} 35. Re7+ {[%clk 0:01:17]}  Kh8 {[%clk 0:00:07]} 36. Rdd7 {[%clk 0:01:14]} 1-0


[Site "https://www.chess.com"]

[Event "Titled Tuesday Blitz October 11 Late 2022"]
[White "Gonzalez, Francisco Silva"]
[Black "Iliaguev, Nisim"]
[WhiteFideId "1512285"]
[BlackFideId "2817276"]
[WhiteElo "2159"]
[BlackElo "2264"]
[Result "0-1"]
[Round "02"]
[TimeControl "180+1"]
[Date "2022.10.12"]
[WhiteClock "0:01:02"]
[BlackClock "0:01:01"]

1. d4 {[%clk 0:03:00]}  Nf6 {[%clk 0:02:59]} 2. c4 {[%clk 0:02:59]}  e6 {[%clk 0:03:00]} 3. Nc3 {[%clk 0:02:58]}  Bb4 {[%clk 0:03:00]} 4. a3 {[%clk 0:02:58]}  Bxc3+ {[%clk 0:03:00]} 5. bxc3 {[%clk 0:02:58]}  O-O {[%clk 0:03:01]} 6. e3 {[%clk 0:02:58]}  b6 {[%clk 0:03:00]} 7. Bd3 {[%clk 0:02:58]}  Ba6 {[%clk 0:03:00]} 8. e4 {[%clk 0:02:58]}  d6 {[%clk 0:02:58]} 9. Nf3 {[%clk 0:02:58]}  e5 {[%clk 0:02:56]} 10. O-O {[%clk 0:02:56]}  Nbd7 {[%clk 0:02:56]} 11. h3 {[%clk 0:02:52]}  h6 {[%clk 0:02:56]} 12. Be3 {[%clk 0:02:50]}  Qe7 {[%clk 0:02:55]} 13. Nd2 {[%clk 0:02:50]}  Rfe8 {[%clk 0:02:54]} 14. f4 {[%clk 0:02:49]}  exf4 {[%clk 0:02:51]} 15. Bxf4 {[%clk 0:02:47]}  Rad8 {[%clk 0:02:47]} 16. Qf3 {[%clk 0:02:45]}  Nh7 {[%clk 0:02:36]} 17. Qh5 {[%clk 0:02:42]}  Ndf6 {[%clk 0:02:29]} 18. Qf3 {[%clk 0:02:42]}  Bb7 {[%clk 0:02:28]} 19. Rae1 {[%clk 0:02:40]}  Nd7 {[%clk 0:02:25]} 20. Qh5 {[%clk 0:02:39]}  Ne5 {[%clk 0:02:06]} 21. Bc2 {[%clk 0:02:30]}  Ng6 {[%clk 0:02:04]} 22. Bg3 {[%clk 0:02:24]}  Qg5 {[%clk 0:01:52]} 23. Qxg5 {[%clk 0:02:16]}  Nxg5 {[%clk 0:01:53]} 24. h4 {[%clk 0:02:12]}  Ne6 {[%clk 0:01:53]} 25. h5 {[%clk 0:02:07]}  Ngf8 {[%clk 0:01:52]} 26. Rf5 {[%clk 0:02:03]}  Ng5 {[%clk 0:01:48]} 27. Bh4 {[%clk 0:01:59]}  Nfh7 {[%clk 0:01:47]} 28. Kf2 {[%clk 0:01:56]}  Re7 {[%clk 0:01:40]} 29. Kg3 {[%clk 0:01:54]}  Rde8 {[%clk 0:01:40]} 30. Kf4 {[%clk 0:01:54]}  f6 {[%clk 0:01:35]} 31. c5 {[%clk 0:01:41]}  dxc5 {[%clk 0:01:33]} 32. dxc5 {[%clk 0:01:40]}  Ne6+ {[%clk 0:01:33]} 33. Kg3 {[%clk 0:01:38]}  Nxc5 {[%clk 0:01:32]} 34. Rxc5 {[%clk 0:01:37]}  bxc5 {[%clk 0:01:33]} 35. Bb3+ {[%clk 0:01:37]}  Kh8 {[%clk 0:01:32]} 36. Bc2 {[%clk 0:01:36]}  Ng5 {[%clk 0:01:31]} 37. Bxg5 {[%clk 0:01:33]}  fxg5 {[%clk 0:01:32]} 38. Rb1 {[%clk 0:01:33]}  Bc6 {[%clk 0:01:30]} 39. Kf3 {[%clk 0:01:25]}  Rd8 {[%clk 0:01:30]} 40. Ke3 {[%clk 0:01:25]}  g4 {[%clk 0:01:23]} 41. Nb3 {[%clk 0:01:23]}  Re5 {[%clk 0:01:19]} 42. Kf4 {[%clk 0:01:22]}  Rxh5 {[%clk 0:01:18]} 43. Kxg4 {[%clk 0:01:20]}  Rg5+ {[%clk 0:01:18]} 44. Kf3 {[%clk 0:01:20]}  Rf8+ {[%clk 0:01:19]} 45. Ke3 {[%clk 0:01:20]}  Rg3+ {[%clk 0:01:19]} 46. Ke2 {[%clk 0:01:16]}  Rxg2+ {[%clk 0:01:19]} 47. Kd3 {[%clk 0:01:15]}  Rxc2 {[%clk 0:01:20]} 48. Nxc5 {[%clk 0:01:12]}  Ra2 {[%clk 0:01:17]} 49. Rb3 {[%clk 0:01:11]}  h5 {[%clk 0:01:14]} 50. Kd4 {[%clk 0:01:11]}  h4 {[%clk 0:01:14]} 51. c4 {[%clk 0:01:11]}  Rh2 {[%clk 0:01:10]} 52. e5 {[%clk 0:01:11]}  h3 {[%clk 0:01:09]} 53. e6 {[%clk 0:01:11]}  Rd2+ {[%clk 0:01:09]} 54. Ke3 {[%clk 0:01:11]}  h2 {[%clk 0:01:06]} 55. Kxd2 {[%clk 0:01:11]}  h1=Q {[%clk 0:01:06]} 56. Re3 {[%clk 0:01:10]}  Rd8+ {[%clk 0:01:05]} 57. Nd3 {[%clk 0:01:07]}  Ba4 {[%clk 0:00:59]} 58. e7 {[%clk 0:01:05]}  Qd1+ {[%clk 0:00:56]} 59. Kc3 {[%clk 0:01:06]}  Rxd3+ {[%clk 0:00:55]} 60. Rxd3 {[%clk 0:01:03]}  Qe1+ {[%clk 0:00:56]} 61. Kd4 {[%clk 0:01:01]}  Qxe7 {[%clk 0:00:56]} 62. Rh3+ {[%clk 0:01:01]}  Kg8 {[%clk 0:00:56]} 63. Re3 {[%clk 0:01:01]}  Qxe3+ {[%clk 0:00:55]} 64. Kxe3 {[%clk 0:01:01]}  Kf7 {[%clk 0:00:56]} 65. Ke4 {[%clk 0:01:02]}  Ke6 {[%clk 0:00:56]} 66. Kf4 {[%clk 0:01:01]}  Kd6 {[%clk 0:00:56]} 67. c5+ {[%clk 0:00:58]}  Kc6 {[%clk 0:00:57]} 68. Kf5 {[%clk 0:00:58]}  Kxc5 {[%clk 0:00:57]} 69. Kg6 {[%clk 0:00:58]}  Kd4 {[%clk 0:00:58]} 70. Kxg7 {[%clk 0:00:57]}  c5 {[%clk 0:00:59]} 71. Kf7 {[%clk 0:00:57]}  c4 {[%clk 0:01:00]} 72. Ke7 {[%clk 0:00:58]}  c3 {[%clk 0:01:01]} 73. Kd6 {[%clk 0:00:58]}  c2 {[%clk 0:01:02]} 74. Kc7 {[%clk 0:00:59]}  c1=Q+ {[%clk 0:01:02]} 75. Kb7 {[%clk 0:01:00]}  Qxa3 {[%clk 0:01:01]} 76. Ka6 {[%clk 0:01:01]}  Bd1+ {[%clk 0:01:00]} 77. Kb5 {[%clk 0:01:00]}  a5 {[%clk 0:00:59]} 78. Ka6 {[%clk 0:01:00]}  Qb4 {[%clk 0:00:58]} 79. Ka7 {[%clk 0:01:01]}  a4 {[%clk 0:00:59]} 80. Ka8 {[%clk 0:01:01]}  a3 {[%clk 0:01:00]} 81. Ka7 {[%clk 0:01:01]}  a2 {[%clk 0:01:00]} 82. Ka8 {[%clk 0:01:02]}  a1=Q# {[%clk 0:01:01]} 0-1


[Site "https://www.chess.com"]